{"text_format":"1","workbook":"xlsx","n_sheets":1,"sheets":["Выгрузка"],"not_rendered":{"charts":0,"images":0,"macros":1,"external_links":0,"defined_names":1,"comments":0,"pivot_tables":0},"unopened":[],"bounds":{"document_bytes":16777216,"sheet_cells":100000,"rows_first":2000,"rows_last":500,"rows_between":2000,"halvings":0,"cell_chars":16384,"cell_head_chars":4096},"cells_cut":0,"cells_raw":0,"read":"whole","date_system":"1900"}

{"sheet":"Выгрузка","index":0,"n_rows":100,"n_cols":15,"rows_kept":100,"cut":false,"hidden":false,"merged":[[1,10,1,12],[1,1,1,3],[1,4,1,6],[1,7,1,9]]}
[]
[]
[null,null,null,null,null,null,null,null,null,null,null,null,null,{"$f":"SUM(N4:N100)","v":14151},{"$f":"SUM(O4:O100)","v":8553}]
["[1026801118563] ТОГБУЗ \"Рассказовская ЦРБ\", ",null,null,null,null,null,null,108,71,2,134,85,1,{"$f":"B4+E4+H4+K4","v":242},{"$f":"C4+F4+I4+L4","v":156}]
["[1026801225417] ОГБУЗ \"Тамбовская инфекционная клиническая больница\", ",null,null,null,null,null,null,4,4,null,12,10,null,{"$f":"B5+E5+H5+K5","v":16},14]
["[1026801226407] ТОГБУЗ \"Городская поликлиника №5 г. Тамбова\", ",null,null,null,null,null,null,659,472,null,657,402,null,1316,874]
["ГБУЗ \"ТОГВВ\", ",null,null,null,null,null,null,2,2,null,27,23,null,29,25]
["ГБУЗ \"ТОДКБ\", ",33,23,null,null,null,null,44,40,null,49,36,null,126,99]
["ГБУЗ \"ТОКБ им. В.Д. Бабенко\", ",107,25,null,null,null,null,5,1,null,1,null,null,113,26]
["ГБУЗ \"ТОКПД\", ",null,null,null,null,null,null,20,20,null,null,null,null,20,20]
["ГБУЗ \"ТООКД\", ",10,8,null,null,null,null,28,23,null,22,14,null,60,45]
["ГУЗ \"ТОКВКД\", ",null,null,null,null,null,null,null,null,null,4,4,null,4,4]
["МИЧУРИНСКИЙ ФИЛИАЛ ГБУЗ \"ТОКПД\", МИЧУРИНСКИЙ ФИЛИАЛ ГБУЗ \"ТОКПД\"",null,null,null,null,null,null,7,5,null,null,null,null,7,5]
["ОГБУЗ \"Тамбовская офтальмологическая больница\", ",1,1,null,null,null,null,null,null,null,null,null,null,1,1]
["ОГБУЗ \"Тамбовская психиатрическая клиническая больница\", ",null,null,null,null,null,null,40,28,null,69,60,null,109,88]
["ТОГБУЗ \"Бондарская ЦРБ\", ",null,null,null,null,null,null,18,15,null,34,34,null,52,49]
["ТОГБУЗ \"ГБ №2 г. Мичуринска\", ",null,null,null,94,null,null,8,1,null,19,3,null,121,4]
["ТОГБУЗ \"ГБ им. С.С.Брюхоненко г. Мичуринска\", ",6,null,null,null,null,null,665,201,null,557,313,null,1228,514]
["ТОГБУЗ \"ГДП им. В.Коваля г. Тамбова\", ",null,null,null,null,null,null,34,33,null,36,31,null,70,64]
["ТОГБУЗ \"ГКБ №3 им. И.С. Долгушина г. Тамбова\" (Никифоровская, 38), ",null,null,null,null,null,null,291,236,null,455,312,null,746,548]
["ТОГБУЗ \"ГКБ №3 им. И.С. Долгушина г. Тамбова\" (Советская, 194), ",null,null,null,null,null,null,333,170,null,160,48,null,493,218]
["ТОГБУЗ \"ГКБ №4 г. Тамбова\", ",null,null,null,null,null,null,538,276,null,735,357,null,1273,633]
["ТОГБУЗ \"ГКБ им.Арх. Луки г. Тамбова\", ",null,null,null,null,null,null,8,6,null,28,18,null,36,24]
["ТОГБУЗ \"Городская клиническая больница г.Котовска\", ",2,null,null,133,99,null,606,479,null,521,393,null,1262,971]
["ТОГБУЗ \"Жердевская ЦРБ\", ",null,null,null,6,4,null,77,36,null,67,42,null,150,82]
["ТОГБУЗ \"Знаменская ЦРБ\", ",null,null,null,null,null,null,59,43,null,21,17,null,80,60]
["ТОГБУЗ \"Инжавинская ЦРБ\", ",1,null,null,36,16,null,120,89,null,54,35,null,211,140]
["ТОГБУЗ \"Кирсановская ЦРБ\" (г.Кирсанов), ",null,null,null,176,132,null,454,426,null,141,129,null,771,687]
["ТОГБУЗ \"Кирсановская ЦРБ\" (с.Гавриловка 2-я), ",null,null,null,9,8,null,25,19,null,75,56,null,109,83]
["ТОГБУЗ \"Мичуринская психиатрическая больница\", ",null,null,null,null,null,null,36,11,null,51,20,null,87,31]
["ТОГБУЗ \"Мичуринская ЦРБ\", ",null,null,null,null,null,null,297,57,null,224,28,null,521,85]
["ТОГБУЗ \"Моршанская ЦРБ\", ",null,null,null,168,118,null,105,58,null,162,82,null,435,258]
["ТОГБУЗ \"Мучкапская ЦРБ им. ак. Кузина\", ",null,null,null,93,87,null,262,228,null,225,167,null,580,482]
["ТОГБУЗ \"Никифоровская ЦРБ\", ",null,null,null,null,null,null,28,19,null,26,18,null,54,37]
["ТОГБУЗ \"Первомайская ЦРБ\", ",null,null,null,null,null,null,110,85,null,55,33,null,165,118]
["ТОГБУЗ \"Петровская ЦРБ\", ",null,null,null,206,177,null,275,147,null,239,145,null,{"$f":"B36+E36+H36+K36","v":720},{"$f":"C36+F36+I36+L36","v":469}]
["ТОГБУЗ \"Пичаевская ЦРБ\", ",1,1,null,null,null,null,245,127,null,246,118,null,492,246]
["ТОГБУЗ \"Рассказовская ЦРБ\", ",2,null,null,null,null,null,605,515,null,410,249,null,1017,764]
["ТОГБУЗ \"Сампурская ЦРБ\", ",null,null,null,null,null,null,18,13,null,16,14,null,34,27]
["ТОГБУЗ \"Сосновская ЦРБ\", ",null,null,null,null,null,null,185,148,null,156,101,null,341,249]
["ТОГБУЗ \"Староюрьевская ЦРБ\", ",null,null,null,null,null,null,8,6,null,8,8,null,16,14]
["ТОГБУЗ \"Тамбовская ЦРБ\", ",null,null,null,8,7,null,59,55,null,21,8,null,88,70]
["ТОГБУЗ \"Токаревская ЦРБ\", ",null,null,null,null,null,null,9,null,null,34,null,null,43,0]
["ТОГБУЗ \"Уваровская ЦРБ\", ",null,null,null,35,3,null,159,45,null,400,90,null,594,138]
["ТОГБУЗ \"Уметская ЦРБ\", ",null,null,null,null,null,null,91,76,null,37,32,null,128,108]
["ФГУЗ \"МСЧ УВД Тамбовской области\", ",null,null,null,null,null,null,8,4,null,8,8,null,16,12]
["ЧУЗ \"РЖД-Медицина\" г.Мичуринск\", ",null,null,null,null,null,null,66,8,null,65,null,null,131,8]
["ЧУЗ \"РЖД-Медицина\" Поликлиника №3 г.Тамбов\", ",null,null,null,null,null,null,10,2,null,34,1,null,44,3]
[null,null,null,null,null,null,null,null,null,null,null,null,null,0,0]
[null,null,null,null,null,null,null,null,null,null,null,null,null,0,0]
[null,null,null,null,null,null,null,null,null,null,null,null,null,0,0]
[null,null,null,null,null,null,null,null,null,null,null,null,null,0,0]
[null,null,null,null,null,null,null,null,null,null,null,null,null,0,0]
[null,null,null,null,null,null,null,null,null,null,null,null,null,0,0]
[null,null,null,null,null,null,null,null,null,null,null,null,null,0,0]
[null,null,null,null,null,null,null,null,null,null,null,null,null,0,0]
[null,null,null,null,null,null,null,null,null,null,null,null,null,0,0]
[null,null,null,null,null,null,null,null,null,null,null,null,null,0,0]
[null,null,null,null,null,null,null,null,null,null,null,null,null,0,0]
[null,null,null,null,null,null,null,null,null,null,null,null,null,0,0]
[null,null,null,null,null,null,null,null,null,null,null,null,null,0,0]
[null,null,null,null,null,null,null,null,null,null,null,null,null,0,0]
[null,null,null,null,null,null,null,null,null,null,null,null,null,0,0]
[null,null,null,null,null,null,null,null,null,null,null,null,null,0,0]
[null,null,null,null,null,null,null,null,null,null,null,null,null,0,0]
[null,null,null,null,null,null,null,null,null,null,null,null,null,0,0]
[null,null,null,null,null,null,null,null,null,null,null,null,null,0,0]
[null,null,null,null,null,null,null,null,null,null,null,null,null,{"$f":"B68+E68+H68+K68","v":0},{"$f":"C68+F68+I68+L68","v":0}]
[null,null,null,null,null,null,null,null,null,null,null,null,null,0,0]
[null,null,null,null,null,null,null,null,null,null,null,null,null,0,0]
[null,null,null,null,null,null,null,null,null,null,null,null,null,0,0]
[null,null,null,null,null,null,null,null,null,null,null,null,null,0,0]
[null,null,null,null,null,null,null,null,null,null,null,null,null,0,0]
[null,null,null,null,null,null,null,null,null,null,null,null,null,0,0]
[null,null,null,null,null,null,null,null,null,null,null,null,null,0,0]
[null,null,null,null,null,null,null,null,null,null,null,null,null,0,0]
[null,null,null,null,null,null,null,null,null,null,null,null,null,0,0]
[null,null,null,null,null,null,null,null,null,null,null,null,null,0,0]
[null,null,null,null,null,null,null,null,null,null,null,null,null,0,0]
[null,null,null,null,null,null,null,null,null,null,null,null,null,0,0]
[null,null,null,null,null,null,null,null,null,null,null,null,null,0,0]
[null,null,null,null,null,null,null,null,null,null,null,null,null,0,0]
[null,null,null,null,null,null,null,null,null,null,null,null,null,0,0]
[null,null,null,null,null,null,null,null,null,null,null,null,null,0,0]
[null,null,null,null,null,null,null,null,null,null,null,null,null,0,0]
[null,null,null,null,null,null,null,null,null,null,null,null,null,0,0]
[null,null,null,null,null,null,null,null,null,null,null,null,null,0,0]
[null,null,null,null,null,null,null,null,null,null,null,null,null,0,0]
[null,null,null,null,null,null,null,null,null,null,null,null,null,0,0]
[null,null,null,null,null,null,null,null,null,null,null,null,null,0,0]
[null,null,null,null,null,null,null,null,null,null,null,null,null,0,0]
[null,null,null,null,null,null,null,null,null,null,null,null,null,0,0]
[null,null,null,null,null,null,null,null,null,null,null,null,null,0,0]
[null,null,null,null,null,null,null,null,null,null,null,null,null,0,0]
[null,null,null,null,null,null,null,null,null,null,null,null,null,0,0]
[null,null,null,null,null,null,null,null,null,null,null,null,null,0,0]
[null,null,null,null,null,null,null,null,null,null,null,null,null,0,0]
[null,null,null,null,null,null,null,null,null,null,null,null,null,{"$f":"B98+E98+H98+K98","v":0},{"$f":"C98+F98+I98+L98","v":0}]
[null,null,null,null,null,null,null,null,null,null,null,null,null,0,0]
[null,null,null,null,null,null,null,null,null,null,null,null,null,0,0]